[Event "Kwalificatie NJK A Groningen"]
[Site "Hoogkerk, Netherlands"]
[Date "2023.02.19"]
[Round "6.10"]
[White "Buijnsters, Floris"]
[Black "Venema, Katja"]
[Result "1/2-1/2"]
[TimeControl "55 min. + 10 sec./zet"]
[WhiteElo "1746"]
[BlackElo "1683"]

1. e4 {[%clk 00:54:51]} {[%emt 00:00:29]} e6 {[%clk 00:55:07]} {[%emt
00:00:13]} 2. d4 {[%clk 00:54:53]} {[%emt 00:00:08]} d5 {[%clk 00:55:06]}
{[%emt 00:00:11]} 3. Nd2 {[%clk 00:54:56]} {[%emt 00:00:07]} c5 {[%clk
00:54:55]} {[%emt 00:00:20]} 4. exd5 {[%clk 00:54:59]} {[%emt 00:00:08]} Qxd5
{[%clk 00:54:21]} {[%emt 00:00:44]} 5. Ngf3 {[%clk 00:54:58]} {[%emt 00:00:11]}
Nc6 {[%clk 00:52:35]} {[%emt 00:01:56]} 6. Bc4 {[%clk 00:54:17]} {[%emt
00:00:51]} Qd8 {[%clk 00:52:04]} {[%emt 00:00:41]} 7. dxc5 {[%clk 00:46:42]}
{[%emt 00:07:45]} Bxc5 {[%clk 00:51:51]} {[%emt 00:00:23]} 8. O-O {[%clk
00:45:44]} {[%emt 00:01:07]} Nf6 {[%clk 00:51:22]} {[%emt 00:00:40]} 9. Nb3
{[%clk 00:44:02]} {[%emt 00:01:51]} Qb6 {[%clk 00:48:27]} {[%emt 00:03:06]} 10.
Nxc5 {[%clk 00:40:29]} {[%emt 00:03:43]} Qxc5 {[%clk 00:48:31]} {[%emt
00:00:06]} 11. b3 {[%clk 00:37:44]} {[%emt 00:02:55]} O-O {[%clk 00:47:06]}
{[%emt 00:01:35]} 12. Bb2 {[%clk 00:36:33]} {[%emt 00:01:21]} e5 {[%clk
00:45:09]} {[%emt 00:02:08]} 13. Qe2 {[%clk 00:33:44]} {[%emt 00:02:53]} Re8
{[%clk 00:43:31]} {[%emt 00:01:53]} 14. Ng5 {[%clk 00:31:42]} {[%emt 00:02:12]}
Re7 {[%clk 00:40:23]} {[%emt 00:03:18]} 15. Ne4 {[%clk 00:31:27]} {[%emt
00:00:24]} Nxe4 {[%clk 00:39:44]} {[%emt 00:00:50]} 16. Qxe4 {[%clk 00:31:32]}
{[%emt 00:00:05]} Be6 {[%clk 00:38:32]} {[%emt 00:01:23]} 17. Bxe6 {[%clk
00:27:01]} {[%emt 00:04:40]} Rxe6 {[%clk 00:38:22]} {[%emt 00:00:19]} 18. Rfd1
{[%clk 00:21:30]} {[%emt 00:05:41]} Rf6 {[%clk 00:36:40]} {[%emt 00:01:53]} 19.
Qe2 {[%clk 00:20:23]} {[%emt 00:01:16]} Nd4 {[%clk 00:34:02]} {[%emt 00:02:49]}
20. Bxd4 {[%clk 00:19:27]} {[%emt 00:01:06]} exd4 {[%clk 00:34:05]} {[%emt
00:00:06]} 21. Qd3 {[%clk 00:17:38]} {[%emt 00:01:58]} Rd8 {[%clk 00:33:38]}
{[%emt 00:00:40]} 22. Rd2 {[%clk 00:15:17]} {[%emt 00:02:30]} g6 {[%clk
00:32:37]} {[%emt 00:01:11]} 23. a4 {[%clk 00:14:39]} {[%emt 00:00:47]} Re6
{[%clk 00:32:07]} {[%emt 00:00:41]} 24. Rad1 {[%clk 00:14:20]} {[%emt
00:00:28]} Rde8 {[%clk 00:31:53]} {[%emt 00:00:25]} 25. f3 {[%clk 00:06:51]}
{[%emt 00:07:39]} Rd8 {[%clk 00:31:18]} {[%emt 00:00:44]} 26. Qb5 {[%clk
00:04:33]} {[%emt 00:02:28]} Qxb5 {[%clk 00:30:54]} {[%emt 00:00:35]} 27. axb5
{[%clk 00:04:42]} {[%emt 00:00:02]} Rc8 {[%clk 00:29:59]} {[%emt 00:01:05]} 28.
Rc1 {[%clk 00:03:05]} {[%emt 00:01:45]} Re3 {[%clk 00:27:55]} {[%emt 00:02:15]}
29. Rxd4 {[%clk 00:01:42]} {[%emt 00:01:32]} Rxb3 {[%clk 00:27:41]} {[%emt
00:00:25]} 30. c4 {[%clk 00:01:20]} {[%emt 00:00:32]} Rxb5 {[%clk 00:27:15]}
{[%emt 00:00:36]} 31. Ra1 {[%clk 00:01:29]} Rb4 {[%clk 00:26:23]} {[%emt
00:01:02]} 32. Rxa7 {[%clk 00:01:19]} {[%emt 00:00:20]} Kg7 {[%clk 00:24:27]}
{[%emt 00:02:06]} 33. Rd7 {[%clk 00:01:11]} {[%emt 00:00:18]} Rcxc4 {[%clk
00:24:17]} {[%emt 00:00:20]} 34. Raxb7 {[%clk 00:01:14]} {[%emt 00:00:07]} Rxb7
{[%clk 00:24:00]} {[%emt 00:00:14]} 1/2-1/2

[Event "Kwalificatie NJK A Groningen"]
[Site "Hoogkerk, Netherlands"]
[Date "2023.02.19"]
[Round "7.1"]
[White "Goudriaan, Rafael"]
[Black "Moskalets, Sofia"]
[Result "1-0"]
[TimeControl "55 min. + 10 sec./zet"]
[WhiteElo "1882"]
[BlackElo "1675"]

1. e4 {[%clk 00:55:02]} {[%emt 00:00:17]} c5 {[%clk 00:55:10]} {[%emt
00:00:10]} 2. Nf3 {[%clk 00:54:49]} {[%emt 00:00:23]} Nc6 {[%clk 00:55:14]}
{[%emt 00:00:07]} 3. Bb5 {[%clk 00:54:17]} {[%emt 00:00:42]} e5 {[%clk
00:54:03]} {[%emt 00:01:21]} 4. O-O {[%clk 00:54:05]} {[%emt 00:00:21]} Bd6
{[%clk 00:54:08]} {[%emt 00:00:06]} 5. c3 {[%clk 00:53:16]} {[%emt 00:00:59]}
a6 {[%clk 00:53:54]} {[%emt 00:00:25]} 6. Be2 {[%clk 00:53:23]} {[%emt
00:00:03]} Qc7 {[%clk 00:50:41]} {[%emt 00:03:22]} 7. a4 {[%clk 00:52:45]}
{[%emt 00:00:48]} Nge7 {[%clk 00:46:17]} {[%emt 00:04:35]} 8. Na3 {[%clk
00:51:57]} {[%emt 00:00:57]} Na5 {[%clk 00:43:42]} {[%emt 00:02:45]} 9. Nc4
{[%clk 00:48:07]} {[%emt 00:04:00]} Nxc4 {[%clk 00:43:33]} {[%emt 00:00:20]} 10.
Bxc4 {[%clk 00:48:15]} {[%emt 00:00:01]} h6 {[%clk 00:40:11]} {[%emt 00:03:32]}
11. d3 {[%clk 00:47:43]} {[%emt 00:00:42]} Rb8 {[%clk 00:37:41]} {[%emt
00:02:40]} 12. a5 {[%clk 00:41:18]} {[%emt 00:06:36]} O-O {[%clk 00:32:13]}
{[%emt 00:05:35]} 13. Nh4 {[%clk 00:40:11]} {[%emt 00:01:18]} Qc6 {[%clk
00:24:15]} {[%emt 00:08:10]} 14. Nf5 {[%clk 00:36:12]} {[%emt 00:04:08]} Nxf5
{[%clk 00:22:40]} {[%emt 00:01:43]} 15. Bd5 {[%clk 00:36:00]} {[%emt 00:00:23]}
Qc7 {[%clk 00:21:55]} {[%emt 00:00:56]} 16. exf5 {[%clk 00:36:02]} {[%emt
00:00:08]} Be7 {[%clk 00:20:24]} {[%emt 00:01:41]} 17. Qf3 {[%clk 00:34:06]}
{[%emt 00:02:06]} Qd6 {[%clk 00:18:22]} {[%emt 00:02:12]} 18. Ra4 {[%clk
00:33:22]} {[%emt 00:00:53]} b6 {[%clk 00:13:57]} {[%emt 00:04:36]} 19. Rg4
{[%clk 00:31:18]} {[%emt 00:02:14]} Kh8 {[%clk 00:12:46]} {[%emt 00:01:18]} 20.
Re1 {[%clk 00:26:21]} {[%emt 00:05:10]} Qf6 {[%clk 00:09:25]} {[%emt 00:03:31]}
21. Qh3 {[%clk 00:21:09]} {[%emt 00:05:22]} d6 {[%clk 00:07:34]} {[%emt
00:02:01]} 22. Bg5 {[%clk 00:15:40]} {[%emt 00:05:38]} Qxf5 {[%clk 00:07:36]}
{[%emt 00:00:08]} 23. Bxe7 {[%clk 00:15:13]} {[%emt 00:00:37]} Qxg4 {[%clk
00:06:21]} {[%emt 00:01:25]} 24. Bxf8 {[%clk 00:10:51]} {[%emt 00:04:32]} Qxh3
{[%clk 00:02:47]} {[%emt 00:03:44]} 25. gxh3 {[%clk 00:10:59]} {[%emt
00:00:03]} Bxh3 {[%clk 00:02:54]} {[%emt 00:00:02]} 26. Bxd6 {[%clk 00:10:05]}
{[%emt 00:01:04]} Rd8 {[%clk 00:02:51]} {[%emt 00:00:14]} 27. axb6 {[%clk
00:10:12]} {[%emt 00:00:03]} Rxd6 {[%clk 00:02:24]} {[%emt 00:00:36]} 28. b7
{[%clk 00:10:20]} Rb6 {[%clk 00:01:34]} {[%emt 00:01:00]} 29. Rxe5 {[%clk
00:10:19]} {[%emt 00:00:12]} Be6 {[%clk 00:01:37]} {[%emt 00:00:07]} 30. Be4
{[%clk 00:09:14]} {[%emt 00:01:15]} Rxb2 {[%clk 00:00:22]} {[%emt 00:01:25]} 31.
Rxc5 {[%clk 00:09:17]} {[%emt 00:00:06]} f5 {[%clk 00:00:19]} {[%emt 00:00:13]}
32. Rc8+ {[%clk 00:09:01]} {[%emt 00:00:26]} Kh7 {[%clk 00:00:28]} {[%emt
00:00:02]} 33. Bf3 {[%clk 00:08:50]} {[%emt 00:00:21]} Rxb7 {[%clk 00:00:18]}
{[%emt 00:00:19]} 34. Bxb7 {[%clk 00:08:58]} {[%emt 00:00:02]} Bxc8 {[%clk
00:00:28]} {[%emt 00:00:02]} 35. Bxc8 {[%clk 00:08:42]} {[%emt 00:00:25]} 1-0

[Event "Kwalificatie NJK A Groningen"]
[Site "Hoogkerk, Netherlands"]
[Date "2023.02.19"]
[Round "7.3"]
[White "Slagboom, Leandro"]
[Black "Den Heijer, Rolinde"]
[Result "1-0"]
[TimeControl "55 min. + 10 sec./zet"]
[WhiteElo "2201"]
[BlackElo "1831"]

1. e4 {[%clk 00:55:17]} {[%emt 00:00:02]} c5 {[%clk 00:55:16]} {[%emt
00:00:04]} 2. Nf3 {[%clk 00:55:23]} {[%emt 00:00:04]} d6 {[%clk 00:55:23]}
{[%emt 00:00:04]} 3. d4 {[%clk 00:55:19]} {[%emt 00:00:15]} cxd4 {[%clk
00:55:28]} {[%emt 00:00:04]} 4. Nxd4 {[%clk 00:55:25]} {[%emt 00:00:04]} Nf6
{[%clk 00:55:34]} {[%emt 00:00:05]} 5. Nc3 {[%clk 00:55:30]} {[%emt 00:00:04]}
a6 {[%clk 00:55:40]} {[%emt 00:00:04]} 6. Be2 {[%clk 00:55:05]} {[%emt
00:00:35]} e5 {[%clk 00:55:36]} {[%emt 00:00:14]} 7. Nb3 {[%clk 00:55:09]}
{[%emt 00:00:06]} Be7 {[%clk 00:55:12]} {[%emt 00:00:33]} 8. Be3 {[%clk
00:55:14]} {[%emt 00:00:05]} Be6 {[%clk 00:55:11]} {[%emt 00:00:12]} 9. O-O
{[%clk 00:55:18]} {[%emt 00:00:06]} O-O {[%clk 00:55:14]} {[%emt 00:00:06]} 10.
Bf3 {[%clk 00:55:07]} {[%emt 00:00:21]} Nbd7 {[%clk 00:54:34]} {[%emt
00:00:50]} 11. a4 {[%clk 00:54:59]} {[%emt 00:00:19]} Qc7 {[%clk 00:52:45]}
{[%emt 00:01:59]} 12. a5 {[%clk 00:54:53]} {[%emt 00:00:16]} Rac8 {[%clk
00:52:18]} {[%emt 00:00:36]} 13. Re1 {[%clk 00:54:33]} {[%emt 00:00:30]} Rfd8
{[%clk 00:51:03]} {[%emt 00:01:26]} 14. h3 {[%clk 00:52:45]} {[%emt 00:01:59]}
Nf8 {[%clk 00:49:44]} {[%emt 00:01:28]} 15. Bb6 {[%clk 00:52:29]} {[%emt
00:00:26]} Qc6 {[%clk 00:48:58]} {[%emt 00:00:56]} 16. Bxd8 {[%clk 00:52:03]}
{[%emt 00:00:36]} Rxd8 {[%clk 00:49:00]} {[%emt 00:00:08]} 17. Nd5 {[%clk
00:51:21]} {[%emt 00:00:52]} Qd7 {[%clk 00:47:43]} {[%emt 00:01:27]} 18. Nd2
{[%clk 00:46:46]} {[%emt 00:04:45]} Nxd5 {[%clk 00:45:26]} {[%emt 00:02:26]} 19.
exd5 {[%clk 00:46:51]} {[%emt 00:00:06]} Bf5 {[%clk 00:45:26]} {[%emt
00:00:10]} 20. Bg4 {[%clk 00:45:21]} {[%emt 00:01:39]} Ng6 {[%clk 00:44:30]}
{[%emt 00:01:07]} 21. c4 {[%clk 00:43:54]} {[%emt 00:01:37]} Nf4 {[%clk
00:43:05]} {[%emt 00:01:34]} 22. Ne4 {[%clk 00:42:51]} {[%emt 00:01:13]} Bxg4
{[%clk 00:42:09]} {[%emt 00:01:06]} 23. hxg4 {[%clk 00:42:55]} {[%emt
00:00:07]} f5 {[%clk 00:41:02]} {[%emt 00:01:17]} 24. gxf5 {[%clk 00:42:42]}
{[%emt 00:00:23]} Qxf5 {[%clk 00:41:05]} {[%emt 00:00:06]} 25. Ra3 {[%clk
00:39:04]} {[%emt 00:03:49]} h5 {[%clk 00:39:58]} {[%emt 00:01:17]} 26. b4
{[%clk 00:35:07]} {[%emt 00:04:08]} h4 {[%clk 00:39:00]} {[%emt 00:01:08]} 27.
Qf3 {[%clk 00:34:31]} {[%emt 00:00:45]} Qg6 {[%clk 00:38:15]} {[%emt 00:00:55]}
28. Kh2 {[%clk 00:24:37]} {[%emt 00:10:04]} Rf8 {[%clk 00:34:30]} {[%emt
00:03:55]} 29. c5 {[%clk 00:22:36]} {[%emt 00:02:11]} Kh8 {[%clk 00:31:07]}
{[%emt 00:03:33]} 30. Nxd6 {[%clk 00:19:15]} {[%emt 00:03:31]} Bxd6 {[%clk
00:29:38]} {[%emt 00:01:39]} 31. cxd6 {[%clk 00:19:20]} {[%emt 00:00:05]} Qxd6
{[%clk 00:29:33]} {[%emt 00:00:15]} 32. Qe4 {[%clk 00:17:32]} {[%emt 00:01:58]}
Ng6 {[%clk 00:27:13]} {[%emt 00:02:30]} 33. Rf3 {[%clk 00:16:23]} {[%emt
00:01:18]} Rxf3 {[%clk 00:26:37]} {[%emt 00:00:46]} 34. gxf3 {[%clk 00:16:29]}
{[%emt 00:00:05]} Qf6 {[%clk 00:25:56]} {[%emt 00:00:51]} 35. Rd1 {[%clk
00:12:59]} {[%emt 00:03:39]} Nf4 {[%clk 00:25:23]} {[%emt 00:00:44]} 36. d6
{[%clk 00:12:25]} {[%emt 00:00:45]} Qg5 {[%clk 00:25:02]} {[%emt 00:00:30]} 37.
Rg1 {[%clk 00:12:18]} {[%emt 00:00:16]} Qf6 {[%clk 00:24:22]} {[%emt 00:00:51]}
38. d7 {[%clk 00:11:42]} {[%emt 00:00:46]} Qd6 {[%clk 00:22:40]} {[%emt
00:01:52]} 39. d8=Q+ {[%clk 00:09:44]} {[%emt 00:02:08]} Qxd8 {[%clk 00:22:36]}
{[%emt 00:00:14]} 40. Qxe5 {[%clk 00:09:46]} {[%emt 00:00:09]} 1-0

[Event "Kwalificatie NJK A Groningen"]
[Site "Hoogkerk, Netherlands"]
[Date "2023.02.19"]
[Round "7.4"]
[White "Adams, Oscar"]
[Black "Van Kuijk, Vadim"]
[Result "0-1"]
[TimeControl "55 min. + 10 sec./zet"]
[WhiteElo "1729"]
[BlackElo "2023"]

1. f4 {[%clk 00:55:18]} {[%emt 00:00:02]} d5 {[%clk 00:54:35]} {[%emt
00:00:46]} 2. Nf3 {[%clk 00:55:22]} {[%emt 00:00:06]} Nf6 {[%clk 00:53:50]}
{[%emt 00:00:54]} 3. b3 {[%clk 00:55:25]} {[%emt 00:00:07]} Bf5 {[%clk
00:52:51]} {[%emt 00:01:08]} 4. e3 {[%clk 00:55:24]} {[%emt 00:00:12]} e6
{[%clk 00:51:00]} {[%emt 00:02:01]} 5. Bb2 {[%clk 00:55:26]} {[%emt 00:00:08]}
h6 {[%clk 00:49:18]} {[%emt 00:01:52]} 6. Be2 {[%clk 00:54:30]} {[%emt
00:01:06]} Nbd7 {[%clk 00:48:24]} {[%emt 00:01:05]} 7. a4 {[%clk 00:52:27]}
{[%emt 00:02:12]} Be7 {[%clk 00:44:27]} {[%emt 00:04:07]} 8. O-O {[%clk
00:52:11]} {[%emt 00:00:26]} O-O {[%clk 00:43:15]} {[%emt 00:01:22]} 9. Ne5
{[%clk 00:49:52]} {[%emt 00:02:30]} Nxe5 {[%clk 00:36:23]} {[%emt 00:07:01]} 10.
Bxe5 {[%clk 00:49:33]} {[%emt 00:00:28]} Nd7 {[%clk 00:34:52]} {[%emt
00:01:41]} 11. Bb2 {[%clk 00:47:56]} {[%emt 00:01:48]} Bf6 {[%clk 00:34:45]}
{[%emt 00:00:17]} 12. Nc3 {[%clk 00:46:57]} {[%emt 00:01:09]} d4 {[%clk
00:26:29]} {[%emt 00:08:27]} 13. exd4 {[%clk 00:46:07]} {[%emt 00:00:59]} Bxd4+
{[%clk 00:26:37]} {[%emt 00:00:02]} 14. Kh1 {[%clk 00:46:03]} {[%emt 00:00:15]}
Nf6 {[%clk 00:19:58]} {[%emt 00:06:48]} 15. Bf3 {[%clk 00:44:22]} {[%emt
00:01:51]} c6 {[%clk 00:20:01]} {[%emt 00:00:07]} 16. d3 {[%clk 00:42:02]}
{[%emt 00:02:30]} Qa5 {[%clk 00:18:02]} {[%emt 00:02:08]} 17. Qe1 {[%clk
00:40:28]} {[%emt 00:01:45]} Bg4 {[%clk 00:16:45]} {[%emt 00:01:28]} 18. h3
{[%clk 00:38:44]} {[%emt 00:01:53]} Bxf3 {[%clk 00:16:38]} {[%emt 00:00:16]} 19.
Rxf3 {[%clk 00:38:05]} {[%emt 00:00:49]} Rfe8 {[%clk 00:16:17]} {[%emt
00:00:32]} 20. Rb1 {[%clk 00:35:16]} {[%emt 00:02:59]} Re7 {[%clk 00:09:30]}
{[%emt 00:06:57]} 21. Qd2 {[%clk 00:32:20]} {[%emt 00:03:06]} e5 {[%clk
00:06:31]} {[%emt 00:03:09]} 22. Ne4 {[%clk 00:32:07]} {[%emt 00:00:23]} Qxd2
{[%clk 00:06:27]} {[%emt 00:00:14]} 23. Nxd2 {[%clk 00:32:11]} {[%emt
00:00:06]} Bxb2 {[%clk 00:06:31]} {[%emt 00:00:06]} 24. Rxb2 {[%clk 00:32:17]}
{[%emt 00:00:04]} exf4 {[%clk 00:06:11]} {[%emt 00:00:30]} 25. Rxf4 {[%clk
00:32:04]} {[%emt 00:00:23]} Re2 {[%clk 00:06:16]} {[%emt 00:00:05]} 26. Nf3
{[%clk 00:29:56]} {[%emt 00:02:18]} Rae8 {[%clk 00:04:47]} {[%emt 00:01:39]} 27.
Nd4 {[%clk 00:27:56]} {[%emt 00:02:10]} Re1+ {[%clk 00:04:24]} {[%emt
00:00:33]} 28. Kh2 {[%clk 00:27:59]} {[%emt 00:00:06]} Rd1 {[%clk 00:04:08]}
{[%emt 00:00:26]} 29. Nf5 {[%clk 00:27:47]} {[%emt 00:00:22]} Rd2 {[%clk
00:03:17]} {[%emt 00:01:02]} 30. Ng3 {[%clk 00:26:59]} {[%emt 00:00:58]} Re5
{[%clk 00:02:11]} {[%emt 00:01:16]} 31. Nf1 {[%clk 00:26:32]} {[%emt 00:00:37]}
Rd1 {[%clk 00:01:58]} {[%emt 00:00:23]} 32. Rf2 {[%clk 00:25:20]} {[%emt
00:01:22]} Ree1 {[%clk 00:01:47]} {[%emt 00:00:21]} 33. Ng3 {[%clk 00:24:53]}
{[%emt 00:00:36]} h5 {[%clk 00:01:48]} {[%emt 00:00:10]} 34. Nf5 {[%clk
00:24:01]} {[%emt 00:01:03]} g6 {[%clk 00:01:27]} {[%emt 00:00:30]} 35. Nh4
{[%clk 00:18:22]} {[%emt 00:05:49]} g5 {[%clk 00:00:55]} {[%emt 00:00:42]} 36.
Nf3 {[%clk 00:18:28]} {[%emt 00:00:03]} Rh1+ {[%clk 00:01:03]} {[%emt
00:00:02]} 37. Kg3 {[%clk 00:18:33]} {[%emt 00:00:05]} h4+ {[%clk 00:01:11]}
{[%emt 00:00:02]} 0-1

[Event "Kwalificatie NJK A Groningen"]
[Site "Hoogkerk, Netherlands"]
[Date "2023.02.19"]
[Round "7.5"]
[White "Knol, DaniÃ«l"]
[Black "De Vries, Arjan"]
[Result "0-1"]
[TimeControl "55 min. + 10 sec./zet"]
[WhiteElo "1807"]
[BlackElo "1645"]

1. e4 {[%clk 00:55:19]} {[%emt 00:00:01]} e5 {[%clk 00:55:16]} {[%emt
00:00:05]} 2. Nf3 {[%clk 00:55:26]} {[%emt 00:00:02]} Nf6 {[%clk 00:55:01]}
{[%emt 00:00:25]} 3. Nxe5 {[%clk 00:55:32]} {[%emt 00:00:04]} d6 {[%clk
00:55:07]} {[%emt 00:00:04]} 4. Nf3 {[%clk 00:55:37]} {[%emt 00:00:05]} Nxe4
{[%clk 00:55:13]} {[%emt 00:00:04]} 5. d4 {[%clk 00:55:42]} {[%emt 00:00:05]}
d5 {[%clk 00:55:15]} {[%emt 00:00:08]} 6. Bd3 {[%clk 00:55:47]} {[%emt
00:00:04]} c5 {[%clk 00:54:32]} {[%emt 00:00:53]} 7. O-O {[%clk 00:55:52]}
{[%emt 00:00:05]} cxd4 {[%clk 00:54:22]} {[%emt 00:00:20]} 8. Nxd4 {[%clk
00:55:55]} {[%emt 00:00:08]} Bd6 {[%clk 00:54:22]} {[%emt 00:00:10]} 9. Re1
{[%clk 00:55:46]} {[%emt 00:00:18]} O-O {[%clk 00:52:49]} {[%emt 00:01:43]} 10.
Bxe4 {[%clk 00:54:31]} {[%emt 00:01:25]} dxe4 {[%clk 00:52:05]} {[%emt
00:00:53]} 11. Rxe4 {[%clk 00:51:52]} {[%emt 00:02:50]} Nc6 {[%clk 00:51:53]}
{[%emt 00:00:23]} 12. Nc3 {[%clk 00:50:07]} {[%emt 00:01:55]} Qf6 {[%clk
00:48:32]} {[%emt 00:03:30]} 13. Nxc6 {[%clk 00:47:09]} {[%emt 00:03:07]} bxc6
{[%clk 00:48:30]} {[%emt 00:00:13]} 14. Re1 {[%clk 00:43:31]} {[%emt 00:03:48]}
Rd8 {[%clk 00:48:17]} {[%emt 00:00:23]} 15. Qh5 {[%clk 00:42:07]} {[%emt
00:01:34]} Bf4 {[%clk 00:45:39]} {[%emt 00:02:47]} 16. Bxf4 {[%clk 00:35:47]}
{[%emt 00:06:31]} Qxf4 {[%clk 00:45:39]} {[%emt 00:00:11]} 17. Qe5 {[%clk
00:33:20]} {[%emt 00:02:36]} Qxe5 {[%clk 00:45:01]} {[%emt 00:00:48]} 18. Rxe5
{[%clk 00:33:29]} Be6 {[%clk 00:44:43]} {[%emt 00:00:28]} 19. Ne4 {[%clk
00:28:09]} {[%emt 00:05:30]} Rd5 {[%clk 00:41:57]} {[%emt 00:02:56]} 20. Rxd5
{[%clk 00:28:13]} {[%emt 00:00:06]} Bxd5 {[%clk 00:42:00]} {[%emt 00:00:07]} 21.
Nc3 {[%clk 00:27:50]} {[%emt 00:00:33]} Be6 {[%clk 00:41:15]} {[%emt 00:00:56]}
22. Rd1 {[%clk 00:27:38]} {[%emt 00:00:21]} Kf8 {[%clk 00:41:05]} {[%emt
00:00:20]} 23. Kf1 {[%clk 00:27:28]} {[%emt 00:00:20]} Re8 {[%clk 00:40:21]}
{[%emt 00:00:54]} 24. f4 {[%clk 00:25:01]} {[%emt 00:02:37]} Ke7 {[%clk
00:40:00]} {[%emt 00:00:32]} 25. Kf2 {[%clk 00:24:33]} {[%emt 00:00:37]} h5
{[%clk 00:39:30]} {[%emt 00:00:41]} 26. a3 {[%clk 00:23:50]} {[%emt 00:00:52]}
Bf5 {[%clk 00:38:41]} {[%emt 00:00:59]} 27. Rd2 {[%clk 00:22:35]} {[%emt
00:01:25]} Rd8 {[%clk 00:38:32]} {[%emt 00:00:20]} 28. Ke3 {[%clk 00:22:10]}
{[%emt 00:00:35]} Rb8 {[%clk 00:38:27]} {[%emt 00:00:15]} 29. b3 {[%clk
00:19:38]} {[%emt 00:02:42]} Re8 {[%clk 00:37:53]} {[%emt 00:00:44]} 30. Ne2
{[%clk 00:17:26]} {[%emt 00:02:22]} Kf6+ {[%clk 00:37:13]} {[%emt 00:00:50]} 31.
Kd4 {[%clk 00:15:44]} {[%emt 00:01:52]} Be4 {[%clk 00:36:25]} {[%emt 00:00:58]}
32. Nc3 {[%clk 00:13:48]} {[%emt 00:02:05]} Kf5 {[%clk 00:36:08]} {[%emt
00:00:27]} 33. Nxe4 {[%clk 00:12:59]} {[%emt 00:01:00]} Rxe4+ {[%clk 00:36:13]}
{[%emt 00:00:05]} 34. Kc5 {[%clk 00:13:05]} {[%emt 00:00:04]} Re6 {[%clk
00:36:09]} {[%emt 00:00:13]} 35. b4 {[%clk 00:12:01]} {[%emt 00:01:14]} f6
{[%clk 00:36:04]} {[%emt 00:00:15]} 36. g3 {[%clk 00:11:50]} {[%emt 00:00:21]}
Kg4 {[%clk 00:36:03]} {[%emt 00:00:10]} 37. Rd7 {[%clk 00:10:48]} {[%emt
00:01:13]} g5 {[%clk 00:35:54]} {[%emt 00:00:20]} 38. fxg5 {[%clk 00:10:42]}
{[%emt 00:00:16]} fxg5 {[%clk 00:35:58]} {[%emt 00:00:05]} 39. Rxa7 {[%clk
00:10:23]} {[%emt 00:00:29]} Re2 {[%clk 00:36:03]} {[%emt 00:00:05]} 40. c4
{[%clk 00:05:37]} {[%emt 00:04:57]} Rxh2 {[%clk 00:36:02]} {[%emt 00:00:10]} 41.
Kxc6 {[%emt 00:00:07]} Kxg3 {[%clk 00:36:05]} {[%emt 00:00:08]} 42. b5 {[%clk
00:05:35]} {[%emt 00:00:15]} h4 {[%clk 00:35:32]} {[%emt 00:00:42]} 43. b6
{[%clk 00:05:44]} {[%emt 00:00:01]} h3 {[%clk 00:35:36]} {[%emt 00:00:06]} 44.
Rh7 {[%clk 00:05:35]} {[%emt 00:00:19]} Rc2 {[%clk 00:35:39]} {[%emt 00:00:07]}
45. b7 {[%clk 00:05:16]} {[%emt 00:00:29]} Rxc4+ {[%clk 00:35:45]} {[%emt
00:00:04]} 46. Kd5 {[%clk 00:05:01]} {[%emt 00:00:24]} 0-1

[Event "Kwalificatie NJK A Groningen"]
[Site "Hoogkerk, Netherlands"]
[Date "2023.02.19"]
[Round "7.6"]
[White "Van Den Berg, Leon"]
[Black "Jacobs, Yanick"]
[Result "1-0"]
[TimeControl "55 min. + 10 sec./zet"]
[WhiteElo "1766"]
[BlackElo "1652"]

1. e4 {[%clk 00:55:16]} {[%emt 00:00:03]} e6 {[%clk 00:55:14]} {[%emt
00:00:07]} 2. d4 {[%clk 00:55:16]} {[%emt 00:00:10]} d5 {[%clk 00:55:15]}
{[%emt 00:00:09]} 3. exd5 {[%clk 00:55:17]} {[%emt 00:00:08]} exd5 {[%clk
00:55:09]} {[%emt 00:00:16]} 4. h3 {[%clk 00:54:53]} {[%emt 00:00:34]} Bf5
{[%clk 00:54:31]} {[%emt 00:00:48]} 5. Nf3 {[%clk 00:54:34]} {[%emt 00:00:30]}
Bd6 {[%clk 00:53:39]} {[%emt 00:01:01]} 6. Bd3 {[%clk 00:54:16]} {[%emt
00:00:28]} Bxd3 {[%clk 00:52:28]} {[%emt 00:01:20]} 7. Qxd3 {[%clk 00:54:18]}
{[%emt 00:00:09]} c6 {[%clk 00:50:49]} {[%emt 00:01:49]} 8. O-O {[%clk
00:53:37]} {[%emt 00:00:51]} Ne7 {[%clk 00:50:42]} {[%emt 00:00:16]} 9. Bg5
{[%clk 00:52:55]} {[%emt 00:00:53]} O-O {[%clk 00:49:18]} {[%emt 00:01:35]} 10.
Nbd2 {[%clk 00:52:07]} {[%emt 00:00:58]} f6 {[%emt 00:03:06]} 11. Bh4 {[%clk
00:49:49]} {[%emt 00:00:45]} Qc7 {[%clk 00:47:47]} {[%emt 00:00:25]} 12. Rfe1
{[%clk 00:47:17]} {[%emt 00:02:44]} Ng6 {[%clk 00:46:56]} {[%emt 00:01:01]} 13.
c4 {[%clk 00:45:59]} {[%emt 00:01:28]} dxc4 {[%clk 00:40:47]} {[%emt 00:06:19]}
14. Nxc4 {[%clk 00:45:40]} {[%emt 00:00:29]} Nxh4 {[%clk 00:40:50]} {[%emt
00:00:07]} 15. Nxh4 {[%clk 00:45:21]} {[%emt 00:00:29]} Be7 {[%clk 00:33:49]}
{[%emt 00:07:11]} 16. Nf5 {[%clk 00:41:01]} {[%emt 00:04:30]} Bb4 {[%clk
00:32:59]} {[%emt 00:01:00]} 17. Re4 {[%clk 00:39:36]} {[%emt 00:01:35]} b5
{[%clk 00:29:15]} {[%emt 00:03:55]} 18. a3 {[%clk 00:37:27]} {[%emt 00:02:19]}
bxc4 {[%clk 00:24:51]} {[%emt 00:04:34]} 19. Qxc4+ {[%clk 00:37:26]} {[%emt
00:00:10]} Qf7 {[%clk 00:23:27]} {[%emt 00:01:33]} 20. Qxb4 {[%clk 00:37:23]}
{[%emt 00:00:14]} Re8 {[%clk 00:14:34]} {[%emt 00:09:02]} 21. Nd6 {[%emt
00:01:52]} 1-0